Workbook

Sheet משפך מכירות לקמפיין
B1: משפך מכירות | F1: תרשים משפך מכירות שמציג את שלבי המכירות ואת הנתונים המתאימים נמצא בתא זה.
B2: לקמפיין
B3: שלב | C3: קשרים פוטנציאליים | D3: הפסדים | E3: לא אושרו
B4: זוהו | C4: 250 | D4: 20 | E4: 9
B5: נוצר קשר | C5: 150 | D5: 15
B6: דיון | C6: 100 | D6: 35
B7: זכיות | C7: 15
B9: עצה: הזן את הנתונים שלך בתאים שלעיל כדי לעדכן את תרשים משפך המכירות.

Sheet scratch (hidden)
A1: *** גיליון זה צריך להישאר מוסתר ***
B7: Y ממוצע: | C7: =AVERAGE(AD13:AE13) -> 183
AD9: =AA12/2+8+50 -> 183
E10: סדרות אחוזים ותוויות | J10: סכומים כוללים לשלב ותוויות | O10: סכומים כוללים ותוויות - הפסדים | T10: סכום כולל ותווית - לא אושרו | Y10: קצוות
B11: שלב | C11: x | E11: הפרשים | G11: 0.45 | H11: =3.85%*C7 -> 7.0455 | J11: הפרשים | L11: 0.45 | M11: =-3.85%*C7 -> -7.0455 | O11: הפרשים | Q11: 0.45 | R11: =-19.2%*C7 -> -35.136 | T11: הפרשים | V11: 0.45 | W11: =-25.7%*C7 -> -47.031 | Y11: 1.8 | AD11: =AD12-8 -> 50 | AE11: =AE12+8 -> 316
B12: מסגרת | E12: תווית | F12: ערך | G12: x | H12: y | J12: תווית | K12: ערך | L12: x | M12: y | O12: תווית | P12: ערך | Q12: x | R12: y | T12: תווית | U12: ערך | V12: x | W12: y | Y12: 2 | AA12: =K13 -> 250 | AB12: זוהו | AD12: =-AA12/2+$AD$9 -> 58 | AE12: =AA12/2+$AD$9 -> 308 | AG12: =AE12 -> 308 | AH12: 0 | AI12: 0 | AJ12: 0
B13: זוהו | C13: 2 | E13: =F13 -> 100% | F13: 100% | G13: =$C13+G$11 -> 2.45 | H13: =$C$7+$H$11 -> 190.0455 | J13: =UPPER(B13)&" "&K13 -> זוהו 250 | K13: ='משפך מכירות לקמפיין'!C4 -> 250 | L13: =$C13+L$11 -> 2.45 | M13: =$C$7+$M$11 -> 175.9545 | O13: ="הפסדים " & P13 -> הפסדים 20 | P13: ='משפך מכירות לקמפיין'!D4 -> 20 | Q13: =$C13+Q$11 -> 2.45 | R13: =$C$7+$R$11 -> 147.864 | T13: ="לא אושרו "&U13 -> לא אושרו 9 | U13: ='משפך מכירות לקמפיין'!E4 -> 9 | V13: =$C13+V$11 -> 2.45 | W13: =$C$7+$W$11 -> 135.969 | Y13: =Y12+1 -> 3 | AB13: זוהו | AD13: =-K13/2+$AD$9 -> 58 | AE13: =K13/2+$AD$9 -> 308 | AG13: =AE13 -> 308 | AH13: =AE13 -> 308 | AI13: 0 | AJ13: 0
B14: נוצר קשר | C14: 3 | E14: =F14 -> 60% | F14: ='משפך מכירות לקמפיין'!C5/'משפך מכירות לקמפיין'!$C$4 -> 60% | G14: =$C14+G$11 -> 3.45 | H14: =$C$7+$H$11 -> 190.0455 | J14: =UPPER(B14)&" "&K14 -> נוצר קשר 150 | K14: ='משפך מכירות לקמפיין'!C5 -> 150 | L14: =$C14+L$11 -> 3.45 | M14: =$C$7+$M$11 -> 175.9545 | O14: ="הפסדים " & P14 -> הפסדים 15 | P14: ='משפך מכירות לקמפיין'!D5 -> 15 | Q14: =$C14+Q$11 -> 3.45 | R14: =$C$7+$R$11 -> 147.864 | Y14: =Y13+1 -> 4 | AB14: נוצר קשר | AD14: =-K14/2+$AD$9 -> 108 | AE14: =K14/2+$AD$9 -> 258 | AH14: =AE14 -> 258 | AI14: =AE14 -> 258 | AJ14: 0
B15: דיון | C15: 4 | E15: =F15 -> 40% | F15: ='משפך מכירות לקמפיין'!C6/'משפך מכירות לקמפיין'!$C$4 -> 40% | G15: =$C15+G$11 -> 4.45 | H15: =$C$7+$H$11 -> 190.0455 | J15: =UPPER(B15)&" "&K15 -> דיון 100 | K15: ='משפך מכירות לקמפיין'!C6 -> 100 | L15: =$C15+L$11 -> 4.45 | M15: =$C$7+$M$11 -> 175.9545 | O15: ="הפסדים " & P15 -> הפסדים 35 | P15: ='משפך מכירות לקמפיין'!D6 -> 35 | Q15: =$C15+Q$11 -> 4.45 | R15: =$C$7+$R$11 -> 147.864 | Y15: =Y14+1 -> 5 | AB15: דיון | AD15: =-K15/2+$AD$9 -> 133 | AE15: =K15/2+$AD$9 -> 233 | AI15: =AE15 -> 233 | AJ15: =AE15 -> 233
B16: זכיות | C16: 5 | E16: =F16 -> 6% | F16: ='משפך מכירות לקמפיין'!C7/'משפך מכירות לקמפיין'!$C$4 -> 6% | G16: =$C16+G$11 - 0.1 -> 5.35 | H16: =$C$7+$H$11 -> 190.0455 | J16: =UPPER(B16) -> זכיות | K16: ='משפך מכירות לקמפיין'!C7 -> 15 | L16: =$C16+L$11 -0.1 -> 5.35 | M16: =$C$7+$M$11 -> 175.9545 | Y16: =Y15+1 -> 6 | AB16: זכיות | AD16: =-K16/2+$AD$9 -> 175.5 | AE16: =K16/2+$AD$9 -> 190.5 | AJ16: =AE16 -> 190.5
B17: זכיות - נקודה | C17: 6 | K17: =K16 -> 15 | L17: 6.44 | M17: =C7 -> 183
